fUST/lending_fUST_20260523
["ID","MTS","AMOUNT","RATE_DAILY","PERIOD"]
[422832821,1779491440000,-500.0,8.219e-05,2]
[422832823,1779491440000,-4664.096336,8.219e-05,2]
[422832824,1779491440000,-4664.096336,8.219e-05,2]
[422832826,1779491440000,-4664.096336,8.219e-05,2]
[422832830,1779491440000,-4664.096336,8.219e-05,2]
[422832828,1779491440000,-4664.096336,8.219e-05,2]
[422832825,1779491440000,-4664.096336,8.219e-05,2]
[422832829,1779491440000,-4664.096336,8.219e-05,2]
[422832827,1779491440000,-4664.096336,8.219e-05,2]
[422832832,1779491440000,-4664.096336,8.219e-05,2]
[422832822,1779491440000,-4664.096336,8.219e-05,2]
[422832831,1779491440000,-500.0,8.219e-05,2]
[422832834,1779491440000,-4664.096336,8.219e-05,2]
[422832820,1779491440000,-4664.096336,8.219e-05,2]
[422832836,1779491440000,-4664.096336,8.219e-05,2]
[422832833,1779491440000,-500.0,8.219e-05,2]
[422832843,1779491440000,-1049.84,8.219e-05,2]
[422832841,1779491440000,-2675.93,8.219e-05,2]
[422832845,1779491440000,-226.48787875,8.219e-05,2]
[422832838,1779491440000,-11770.92,8.219e-05,2]
[422832842,1779491440000,-835.14,8.219e-05,2]
[422832839,1779491440000,-4664.096336,8.219e-05,2]
[422832837,1779491440000,-4664.096336,8.219e-05,2]
[422832844,1779491440000,-1374.95,8.219e-05,2]
[422832840,1779491440000,-4664.09633539,8.219e-05,2]
[422832847,1779491440000,-500.0,8.219e-05,2]
[422832846,1779491440000,-500.0,8.219e-05,2]
[422832782,1779491440000,-4814.89,8.219e-05,2]
[422832835,1779491440000,-4664.096336,8.219e-05,2]
[422832819,1779491440000,-4664.096336,8.219e-05,2]
[422832735,1779491440000,-500.97,8.219e-05,2]
[422832816,1779491440000,-4664.096336,8.219e-05,2]
[422832789,1779491440000,-500.0,8.219e-05,2]
[422832791,1779491440000,-500.0,8.219e-05,2]
[422832800,1779491440000,-500.0,8.219e-05,2]
[422832790,1779491440000,-3734.85,8.219e-05,2]
[422832799,1779491440000,-500.0,8.219e-05,2]
[422832792,1779491440000,-564.78,8.219e-05,2]
[422832797,1779491440000,-2383.17,8.219e-05,2]
[422832795,1779491440000,-874.61,8.219e-05,2]
[422832794,1779491440000,-500.0,8.219e-05,2]
[422832796,1779491440000,-500.0,8.219e-05,2]
[422832798,1779491440000,-919.04,8.219e-05,2]
[422832793,1779491440000,-500.0,8.219e-05,2]
[422832807,1779491440000,-500.0,8.219e-05,2]
[422832806,1779491440000,-500.0,8.219e-05,2]
[422832788,1779491440000,-500.0,8.219e-05,2]
[422832801,1779491440000,-326.84572109,8.219e-05,2]
[422832813,1779491440000,-250.15785677,8.219e-05,2]
[422832815,1779491440000,-500.0,8.219e-05,2]
[422832814,1779491440000,-500.0,8.219e-05,2]
[422832817,1779491440000,-833.79,8.219e-05,2]
[422832805,1779491440000,-500.0,8.219e-05,2]
[422832809,1779491440000,-1053.08,8.219e-05,2]
[422832812,1779491440000,-847.82,8.219e-05,2]
[422832802,1779491440000,-500.0,8.219e-05,2]
[422832818,1779491440000,-4664.096336,8.219e-05,2]
[422832811,1779491440000,-1964.46,8.219e-05,2]
[422832803,1779491440000,-507.29,8.219e-05,2]
[422832808,1779491440000,-500.0,8.219e-05,2]
[422832804,1779491440000,-500.0,8.219e-05,2]
[422832810,1779491440000,-500.0,8.219e-05,2]
[422832892,1779491441000,-291.516136,8.219e-05,2]
[422832893,1779491441000,-291.516136,8.219e-05,2]
[422832887,1779491441000,-291.516136,8.219e-05,2]
[422832898,1779491441000,-577.80576641,8.219e-05,2]
[422832897,1779491441000,-500.0,8.219e-05,2]
[422832883,1779491441000,-291.516136,8.219e-05,2]
[422832885,1779491441000,-291.516136,8.219e-05,2]
[422832895,1779491441000,-291.516133,8.219e-05,2]
[422832894,1779491441000,-291.516136,8.219e-05,2]
[422832878,1779491441000,-291.516136,8.219e-05,2]
[422832879,1779491441000,-500.0,8.219e-05,2]
[422832889,1779491441000,-3821.77,8.219e-05,2]
[422832896,1779491441000,-4566.29,8.219e-05,2]
[422832888,1779491441000,-291.516136,8.219e-05,2]
[422832900,1779491441000,-500.0,8.219e-05,2]
[422832886,1779491441000,-500.0,8.219e-05,2]
[422832891,1779491441000,-291.516136,8.219e-05,2]
[422832904,1779491441000,-500.0,8.219e-05,2]
[422832901,1779491441000,-11681.15,8.219e-05,2]
[422832906,1779491441000,-3764.73,8.219e-05,2]
[422832903,1779491441000,-909.84,8.219e-05,2]
[422832908,1779491441000,-2141.44,8.219e-05,2]
[422832905,1779491441000,-4481.42,8.219e-05,2]
[422832899,1779491441000,-500.0,8.219e-05,2]
[422832912,1779491441000,-500.0,8.219e-05,2]
[422832911,1779491441000,-8344.32,8.219e-05,2]
[422832909,1779491441000,-151.0,8.219e-05,2]
[422832902,1779491441000,-500.0,8.219e-05,2]
[422832881,1779491441000,-291.516136,8.219e-05,2]
[422832890,1779491441000,-291.516136,8.219e-05,2]
[422832884,1779491441000,-7526.57,8.219e-05,2]
[422832863,1779491441000,-500.0,8.219e-05,2]
[422832880,1779491441000,-291.516136,8.219e-05,2]
[422832853,1779491441000,-500.0,8.219e-05,2]
[422832857,1779491441000,-500.0,8.219e-05,2]
[422832854,1779491441000,-3825.64,8.219e-05,2]
[422832855,1779491441000,-1000.0,8.219e-05,2]
[422832852,1779491441000,-500.33,8.219e-05,2]
[422832848,1779491441000,-3575.46,8.219e-05,2]
[422832858,1779491441000,-500.0,8.219e-05,2]
[422832851,1779491441000,-710.15,8.219e-05,2]
[422832850,1779491441000,-500.0,8.219e-05,2]
[422832849,1779491441000,-2275.45,8.219e-05,2]
[422832860,1779491441000,-500.0,8.219e-05,2]
[422832870,1779491441000,-291.516136,8.219e-05,2]
[422832871,1779491441000,-291.516136,8.219e-05,2]
[422832864,1779491441000,-1028.37,8.219e-05,2]
[422832865,1779491441000,-500.0,8.219e-05,2]
[422832861,1779491441000,-3252.07,8.219e-05,2]
[422832907,1779491441000,-1017.39,8.219e-05,2]
[422832867,1779491441000,-632.2,8.219e-05,2]
[422832862,1779491441000,-788.6,8.219e-05,2]
[422832869,1779491441000,-291.516136,8.219e-05,2]
[422832868,1779491441000,-291.516136,8.219e-05,2]
[422832866,1779491441000,-500.0,8.219e-05,2]
[422832859,1779491441000,-500.0,8.219e-05,2]
[422832873,1779491441000,-500.0,8.219e-05,2]
[422832875,1779491441000,-291.516136,8.219e-05,2]
[422832882,1779491441000,-500.0,8.219e-05,2]
[422832874,1779491441000,-799.6,8.219e-05,2]
[422832876,1779491441000,-291.516136,8.219e-05,2]
[422832872,1779491441000,-291.516136,8.219e-05,2]
[422832877,1779491441000,-1777.22,8.219e-05,2]
[422832910,1779491441000,-151.0,8.219e-05,2]
[422832856,1779491441000,-500.0,8.219e-05,2]
[422832917,1779491441000,-1320.73,8.219e-05,2]
[422832948,1779491441000,-151.0,8.219e-05,2]
[422832949,1779491441000,-151.0,8.219e-05,2]
[422832946,1779491441000,-151.0,8.219e-05,2]
[422832952,1779491441000,-151.0,8.219e-05,2]
[422832954,1779491441000,-500.0,8.219e-05,2]
[422832955,1779491441000,-151.0,8.219e-05,2]
[422832953,1779491441000,-151.0,8.219e-05,2]
[422832956,1779491441000,-151.0,8.219e-05,2]
[422832958,1779491441000,-151.0,8.219e-05,2]
[422832957,1779491441000,-1382.56,8.219e-05,2]
[422832961,1779491441000,-237.932547,8.219e-05,2]
[422832960,1779491441000,-151.0,8.219e-05,2]
[422832959,1779491441000,-1465.11,8.219e-05,2]
[422832964,1779491441000,-221.283085,8.219e-05,2]
[422832945,1779491441000,-151.0,8.219e-05,2]
[422832962,1779491441000,-221.283085,8.219e-05,2]
[422832975,1779491441000,-221.283085,8.219e-05,2]
[422832976,1779491441000,-221.283085,8.219e-05,2]
[422832978,1779491441000,-221.283085,8.219e-05,2]
[422832977,1779491441000,-221.283085,8.219e-05,2]
[422832966,1779491441000,-500.0,8.219e-05,2]
[422832967,1779491441000,-221.283085,8.219e-05,2]
[422832972,1779491441000,-221.283085,8.219e-05,2]
[422832970,1779491441000,-221.283085,8.219e-05,2]
[422832974,1779491441000,-221.283085,8.219e-05,2]
[422832968,1779491441000,-500.0,8.219e-05,2]
[422832971,1779491441000,-500.0,8.219e-05,2]
[422832973,1779491441000,-221.283085,8.219e-05,2]
[422832969,1779491441000,-3764.75,8.219e-05,2]
[422832923,1779491441000,-500.0,8.219e-05,2]
[422832963,1779491441000,-942.76,8.219e-05,2]
[422832939,1779491441000,-151.0,8.219e-05,2]
[422832965,1779491441000,-918.93,8.219e-05,2]
[422832942,1779491441000,-151.0,8.219e-05,2]
[422832921,1779491441000,-500.0,8.219e-05,2]
[422832915,1779491441000,-500.0,8.219e-05,2]
[422832944,1779491441000,-151.0,8.219e-05,2]
[422832920,1779491441000,-500.0,8.219e-05,2]
[422832919,1779491441000,-1052.3,8.219e-05,2]
[422832924,1779491441000,-479.40424529,8.219e-05,2]
[422832913,1779491441000,-202.696786,8.219e-05,2]
[422832925,1779491441000,-3100.71,8.219e-05,2]
[422832914,1779491441000,-500.0,8.219e-05,2]
[422832916,1779491441000,-500.0,8.219e-05,2]
[422832922,1779491441000,-500.0,8.219e-05,2]
[422832926,1779491441000,-1174.77,8.219e-05,2]
[422832932,1779491441000,-901.31,8.219e-05,2]
[422832928,1779491441000,-4993.12,8.219e-05,2]
[422832929,1779491441000,-500.0,8.219e-05,2]
[422832918,1779491441000,-3915.14,8.219e-05,2]
[422832930,1779491441000,-500.0,8.219e-05,2]
[422832947,1779491441000,-151.0,8.219e-05,2]
[422832931,1779491441000,-2026.13,8.219e-05,2]
[422832943,1779491441000,-743.71,8.219e-05,2]
[422832951,1779491441000,-151.0,8.219e-05,2]
[422832950,1779491441000,-151.0,8.219e-05,2]
[422832940,1779491441000,-541.42,8.219e-05,2]
[422832934,1779491441000,-500.0,8.219e-05,2]
[422832941,1779491441000,-151.0,8.219e-05,2]
[422832938,1779491441000,-3377.6,8.219e-05,2]
[422832936,1779491441000,-500.0,8.219e-05,2]
[422832933,1779491441000,-500.0,8.219e-05,2]
[422832935,1779491441000,-500.0,8.219e-05,2]
[422832927,1779491441000,-500.0,8.219e-05,2]
[422832937,1779491441000,-500.0,8.219e-05,2]
[422832993,1779491442000,-204.60377868,8.219e-05,7]
[422832997,1779491442000,-228.36867976,8.219e-05,2]
[422832995,1779491442000,-613.81133605,8.219e-05,7]
[422832992,1779491442000,-463.28974138,8.219e-05,2]
[422832994,1779491442000,-409.20755737,8.219e-05,7]
[422832999,1779491442000,-500.0,8.219e-05,2]
[422832996,1779491442000,-199.41813531,8.219e-05,4]
[422833001,1779491442000,-314.7092036,8.219e-05,2]
[422833000,1779491442000,-157.3546018,8.219e-05,2]
[422833005,1779491442000,-648.23239608,8.219e-05,2]
[422832998,1779491442000,-456.73735952,8.219e-05,2]
[422833004,1779491442000,-216.07746536,8.219e-05,2]
[422833003,1779491442000,-432.15493072,8.219e-05,2]
[422832987,1779491442000,-221.283085,8.219e-05,2]
[422832989,1779491442000,-177.36343859,8.219e-05,7]
[422832990,1779491442000,-154.42991379,8.219e-05,2]
[422832984,1779491442000,-221.283085,8.219e-05,2]
[422832988,1779491442000,-194.321476,8.219e-05,2]
[422832985,1779491442000,-221.283085,8.219e-05,2]
[422832991,1779491442000,-308.85982758,8.219e-05,2]
[422832983,1779491442000,-221.283085,8.219e-05,2]
[422832982,1779491442000,-221.283085,8.219e-05,2]
[422832980,1779491442000,-500.0,8.219e-05,2]
[422832981,1779491442000,-221.283085,8.219e-05,2]
[422832979,1779491442000,-221.283085,8.219e-05,2]
[422833006,1779491442000,-6575.45704139,8.22e-05,2]
[422833002,1779491442000,-472.06380539,8.219e-05,2]
[422833007,1779491442000,-300.0,8.28e-05,2]
[422832986,1779491442000,-162.27099374,8.219e-05,2]
[422833009,1779491442000,-300.0,8.28e-05,2]
[422833044,1779491442000,-617.71965517,8.402e-05,2]
[422833042,1779491442000,-685.10603928,8.401e-05,2]
[422833041,1779491442000,-31.71543766,8.401e-05,4]
[422833040,1779491442000,-367.12083296,8.401e-05,4]
[422833039,1779491442000,-274.66589183,8.399e-05,7]
[422833036,1779491442000,-221.283085,8.219e-05,2]
[422833037,1779491442000,-2442.66,8.219e-05,2]
[422833038,1779491442000,-221.283081,8.219e-05,2]
[422833035,1779491442000,-160.0,8.067e-05,2]
[422833028,1779491442000,-629.41840719,8.365e-05,2]
[422833029,1779491442000,-543.7492229,8.399e-05,7]
[422833027,1779491442000,-153.07905553,8.343e-05,7]
[422833026,1779491442000,-430.03297469,8.326e-05,2]
[422833010,1779491442000,-300.0,8.28e-05,2]
[422833018,1779491442000,-300.0,8.28e-05,2]
[422833020,1779491442000,-300.0,8.28e-05,2]
[422833022,1779491442000,-600.0,8.28e-05,2]
[422833021,1779491442000,-300.0,8.28e-05,2]
[422833019,1779491442000,-300.0,8.28e-05,2]
[422833014,1779491442000,-300.0,8.28e-05,2]
[422833016,1779491442000,-300.0,8.28e-05,2]
[422833011,1779491442000,-300.0,8.28e-05,2]
[422833013,1779491442000,-300.0,8.28e-05,2]
[422833017,1779491442000,-300.0,8.28e-05,2]
[422833012,1779491442000,-300.0,8.28e-05,2]
[422833015,1779491442000,-300.0,8.28e-05,2]
[422833008,1779491442000,-300.0,8.28e-05,2]
[422833023,1779491442000,-69.96702531,8.326e-05,2]
[422833045,1779491443000,-354.72687719,8.402e-05,7]
[422833046,1779491443000,-152.0,8.455e-05,7]
[422833048,1779491443000,-9522.33199093,8.458e-05,2]
[422833047,1779491443000,-152.0,8.455e-05,7]
[422833049,1779491443000,-11287.65066288,8.458e-05,2]
[422833050,1779491443000,-5571.08638021,8.458e-05,2]
[422833054,1779491446000,-275.76797492,8.067e-05,2]
[422833056,1779491446000,-8041.08644119,8.219e-05,2]
[422833055,1779491446000,-526.39,8.219e-05,2]
[422833057,1779491446000,-39918.69355881,8.219e-05,2]
[422833058,1779491446000,-11618.93096598,8.458e-05,2]
[422833059,1779491447000,-37133.82045925,8.467e-05,2]
[422833095,1779492436000,-166.35598,7.051e-05,2]
[422833096,1779492436000,-410.73216715,7.127e-05,2]
[422833102,1779492436000,-160.0,7.961e-05,2]
[422833097,1779492436000,-210.37717517,7.203e-05,2]
[422833100,1779492436000,-1200.0,7.961e-05,2]
[422833099,1779492436000,-300.0,7.96e-05,2]
[422833098,1779492436000,-500.0,7.864e-05,2]
[422833101,1779492436000,-766.56709688,7.961e-05,2]
[422833104,1779492436000,-160.0,7.962e-05,2]
[422833105,1779492436000,-300.0,7.962e-05,2]
[422833106,1779492436000,-300.0,7.962e-05,2]
[422833109,1779492436000,-3060.92682407,8.119e-05,2]
[422833108,1779492436000,-190.68,7.977e-05,2]
[422833110,1779492436000,-1792.38569261,8.119e-05,2]
[422833107,1779492436000,-300.0,7.962e-05,2]
[422833103,1779492436000,-161.72364698,7.962e-05,2]
[422833121,1779492632000,-500.0,7.864e-05,2]
[422833129,1779492632000,-316.40928836,8.118e-05,2]
[422833120,1779492632000,-173.70128651,7.746e-05,2]
[422833122,1779492632000,-214.0,8.117e-05,2]
[422833125,1779492632000,-161.72364698,8.117e-05,2]
[422833123,1779492632000,-300.0,8.117e-05,2]
[422833126,1779492632000,-160.0,8.117e-05,2]
[422833130,1779492632000,-766.56709688,8.118e-05,2]
[422833124,1779492632000,-1200.0,8.117e-05,2]
[422833128,1779492632000,-493.31857127,8.118e-05,2]
[422833131,1779492632000,-160.0,8.118e-05,2]
[422833133,1779492632000,-9258.30492328,8.119e-05,2]
[422833132,1779492632000,-6189.42207426,8.119e-05,2]
[422833127,1779492632000,-500.0,8.118e-05,2]
[422833226,1779492638000,-38.21611415,8.126e-05,2]
[422833207,1779492638000,-300.0,8.126e-05,2]
[422833208,1779492638000,-300.0,8.126e-05,2]
[422833205,1779492638000,-300.0,8.126e-05,2]
[422833210,1779492638000,-300.0,8.126e-05,2]
[422833203,1779492638000,-300.0,8.126e-05,2]
[422833204,1779492638000,-300.0,8.126e-05,2]
[422833230,1779492638000,-420.96213853,8.126e-05,2]
[422833201,1779492638000,-25541.37712537,8.119e-05,2]
[422833202,1779492638000,-300.0,8.126e-05,2]
[422833206,1779492638000,-300.0,8.126e-05,2]
[422833232,1779492638000,-443.0,8.161e-05,2]
[422833212,1779492638000,-300.0,8.126e-05,2]
[422833214,1779492638000,-300.0,8.126e-05,2]
[422833216,1779492638000,-300.0,8.126e-05,2]
[422833246,1779492638000,-421.34943747,8.218e-05,2]
[422833243,1779492638000,-500.0,8.218e-05,2]
[422833245,1779492638000,-500.0,8.218e-05,2]
[422833242,1779492638000,-247.585,8.217e-05,2]
[422833238,1779492638000,-9259.80131239,8.217e-05,2]
[422833240,1779492638000,-331.45440678,8.217e-05,2]
[422833222,1779492638000,-300.0,8.126e-05,2]
[422833234,1779492638000,-185.0,8.161e-05,2]
[422833224,1779492638000,-300.0,8.126e-05,2]
[422833220,1779492638000,-300.0,8.126e-05,2]
[422833218,1779492638000,-300.0,8.126e-05,2]
[422833236,1779492638000,-392.74428083,8.217e-05,2]
[422833292,1779492640000,-500.0,8.218e-05,2]
[422833293,1779492640000,-500.0,8.218e-05,2]
[422833290,1779492640000,-78.65056253,8.218e-05,2]
[422833296,1779492640000,-500.0,8.218e-05,2]
[422833291,1779492640000,-500.0,8.218e-05,2]
[422833294,1779492640000,-500.0,8.218e-05,2]
[422833297,1779492640000,-300.0,8.218e-05,2]
[422833298,1779492640000,-500.0,8.219e-05,2]
[422833300,1779492640000,-1910.26177019,8.219e-05,2]
[422833299,1779492640000,-593.20585983,8.219e-05,2]
[422833295,1779492640000,-507.61103853,8.218e-05,2]
[422833333,1779492643000,-908.77991791,8.219e-05,2]
[422833332,1779492643000,-500.0,8.219e-05,2]
[422833329,1779492643000,-775.16562981,8.219e-05,2]
[422833331,1779492643000,-685.53,8.219e-05,2]
[422833330,1779492643000,-2685.4274,8.219e-05,2]
[422833341,1779492647000,-651.79,8.219e-05,2]
[422833340,1779492647000,-237.49008209,8.219e-05,2]
[422833342,1779492647000,-500.0,8.219e-05,2]
[422833343,1779492647000,-17.25458127,8.219e-05,2]
[422833364,1779493351000,159.496814,3.585e-05,2]
[422833374,1779493747000,-159.496814,7.171e-05,2]
[422833375,1779493747000,-385.706586,7.345e-05,2]
[422833448,1779493836000,-500.0,8.018e-05,2]
[422833441,1779493836000,-16.81093781,7.345e-05,2]
[422833444,1779493836000,-300.0,8.017e-05,2]
[422833443,1779493836000,-500.0,7.867e-05,2]
[422833446,1779493836000,-500.0,8.018e-05,2]
[422833459,1779493836000,-446.07079546,8.018e-05,2]
[422833463,1779493836000,-500.0,8.018e-05,2]
[422833461,1779493836000,-500.0,8.018e-05,2]
[422833452,1779493836000,-500.0,8.018e-05,2]
[422833464,1779493836000,-198.068,8.018e-05,2]
[422833454,1779493836000,-500.0,8.018e-05,2]
[422833476,1779493836000,-497.1352742,8.019e-05,2]
[422833456,1779493836000,-500.0,8.018e-05,2]
[422833466,1779493836000,-3661.8655427,8.019e-05,2]
[422833450,1779493836000,-565.32772697,8.018e-05,2]
[422833532,1779493838000,-325.80027339,7.919e-05,2]
[422833530,1779493838000,-262.27555465,7.919e-05,2]
[422833603,1779493839000,-2079.43,8.219e-05,2]
[422833604,1779493839000,-509.64,8.219e-05,2]
[422833612,1779493839000,-800.34,8.219e-05,2]
[422833602,1779493839000,-500.0,8.219e-05,2]
[422833611,1779493839000,-799.05,8.219e-05,2]
[422833597,1779493839000,-500.0,8.219e-05,2]
[422833607,1779493839000,-500.0,8.219e-05,2]
[422833608,1779493839000,-500.0,8.219e-05,2]
[422833596,1779493839000,-500.0,8.219e-05,2]
[422833605,1779493839000,-1110.09,8.219e-05,2]
[422833594,1779493839000,-500.0,8.219e-05,2]
[422833610,1779493839000,-1225.3,8.219e-05,2]
[422833614,1779493839000,-500.0,8.219e-05,2]
[422833618,1779493839000,-500.0,8.219e-05,2]
[422833606,1779493839000,-838.17,8.219e-05,2]
[422833615,1779493839000,-500.0,8.219e-05,2]
[422833619,1779493839000,-500.0,8.219e-05,2]
[422833592,1779493839000,-500.0,8.219e-05,2]
[422833620,1779493839000,-1703.17,8.219e-05,2]
[422833624,1779493839000,-289.66764344,8.219e-05,2]
[422833622,1779493839000,-500.0,8.219e-05,2]
[422833617,1779493839000,-500.0,8.219e-05,2]
[422833623,1779493839000,-316.19235656,8.219e-05,2]
[422833621,1779493839000,-680.56,8.219e-05,2]
[422833626,1779493839000,-755.74,8.219e-05,2]
[422833625,1779493839000,-500.0,8.219e-05,2]
[422833616,1779493839000,-1000.0,8.219e-05,2]
[422833613,1779493839000,-500.0,8.219e-05,2]
[422833593,1779493839000,-500.0,8.219e-05,2]
[422833586,1779493839000,-500.0,8.219e-05,2]
[422833590,1779493839000,-500.0,8.219e-05,2]
[422833537,1779493839000,-37393.07784977,7.919e-05,2]
[422833553,1779493839000,-766.56709688,8.207e-05,2]
[422833551,1779493839000,-151.585,8.161e-05,2]
[422833539,1779493839000,-161.72364698,8.109e-05,2]
[422833555,1779493839000,-2076.804,8.219e-05,2]
[422833557,1779493839000,-500.0,8.219e-05,2]
[422833543,1779493839000,-160.0,8.109e-05,2]
[422833549,1779493839000,-166.213,8.161e-05,2]
[422833545,1779493839000,-4704.1912952,8.16e-05,2]
[422833547,1779493839000,-185.0,8.161e-05,2]
[422833541,1779493839000,-160.0,8.109e-05,2]
[422833559,1779493839000,-500.0,8.219e-05,2]
[422833563,1779493839000,-1507.57,8.219e-05,2]
[422833561,1779493839000,-500.0,8.219e-05,2]
[422833565,1779493839000,-500.0,8.219e-05,2]
[422833569,1779493839000,-500.0,8.219e-05,2]
[422833579,1779493839000,-500.0,8.219e-05,2]
[422833575,1779493839000,-500.0,8.219e-05,2]
[422833567,1779493839000,-500.0,8.219e-05,2]
[422833577,1779493839000,-702.83,8.219e-05,2]
[422833571,1779493839000,-500.0,8.219e-05,2]
[422833581,1779493839000,-500.0,8.219e-05,2]
[422833573,1779493839000,-500.0,8.219e-05,2]
[422833583,1779493839000,-500.0,8.219e-05,2]
[422833584,1779493839000,-500.0,8.219e-05,2]
[422833628,1779493839000,-500.0,8.219e-05,2]
[422833588,1779493839000,-500.0,8.219e-05,2]
[422833601,1779493839000,-500.0,8.219e-05,2]
[422833639,1779493839000,-712.72,8.219e-05,2]
[422833609,1779493839000,-880.74,8.219e-05,2]
[422833638,1779493839000,-500.0,8.219e-05,2]
[422833663,1779493839000,-869.6,8.219e-05,2]
[422833661,1779493839000,-1692.66,8.219e-05,2]
[422833662,1779493839000,-500.0,8.219e-05,2]
[422833664,1779493839000,-561.48,8.219e-05,2]
[422833667,1779493839000,-1319.94,8.219e-05,2]
[422833669,1779493839000,-500.0,8.219e-05,2]
[422833670,1779493839000,-638.13,8.219e-05,2]
[422833671,1779493839000,-500.0,8.219e-05,2]
[422833672,1779493839000,-1846.12,8.219e-05,2]
[422833674,1779493839000,-1445.29,8.219e-05,2]
[422833673,1779493839000,-500.0,8.219e-05,2]
[422833668,1779493839000,-514.72069811,8.219e-05,2]
[422833675,1779493839000,-523.18,8.219e-05,2]
[422833659,1779493839000,-500.0,8.219e-05,2]
[422833678,1779493839000,-2079.85,8.219e-05,2]
[422833676,1779493839000,-500.0,8.219e-05,2]
[422833679,1779493839000,-500.0,8.219e-05,2]
[422833687,1779493839000,-500.0,8.219e-05,2]
[422833688,1779493839000,-500.0,8.219e-05,2]
[422833689,1779493839000,-1184.03,8.219e-05,2]
[422833690,1779493839000,-500.0,8.219e-05,2]
[422833680,1779493839000,-2255.57,8.219e-05,2]
[422833683,1779493839000,-500.0,8.219e-05,2]
[422833682,1779493839000,-500.0,8.219e-05,2]
[422833686,1779493839000,-500.0,8.219e-05,2]
[422833630,1779493839000,-500.0,8.219e-05,2]
[422833685,1779493839000,-500.0,8.219e-05,2]
[422833681,1779493839000,-937.49,8.219e-05,2]
[422833677,1779493839000,-500.0,8.219e-05,2]
[422833656,1779493839000,-521.34758269,8.219e-05,2]
[422833684,1779493839000,-614.76,8.219e-05,2]
[422833654,1779493839000,-500.0,8.219e-05,2]
[422833629,1779493839000,-500.0,8.219e-05,2]
[422833666,1779493839000,-500.0,8.219e-05,2]
[422833631,1779493839000,-500.0,8.219e-05,2]
[422833636,1779493839000,-500.0,8.219e-05,2]
[422833635,1779493839000,-636.2906336,8.219e-05,2]
[422833632,1779493839000,-500.0,8.219e-05,2]
[422833634,1779493839000,-500.0,8.219e-05,2]
[422833637,1779493839000,-500.0,8.219e-05,2]
[422833633,1779493839000,-1125.82,8.219e-05,2]
[422833642,1779493839000,-504.46,8.219e-05,2]
[422833640,1779493839000,-500.0,8.219e-05,2]
[422833641,1779493839000,-880.64,8.219e-05,2]
[422833645,1779493839000,-674.25,8.219e-05,2]
[422833643,1779493839000,-500.0,8.219e-05,2]
[422833627,1779493839000,-975.0,8.219e-05,2]
[422833649,1779493839000,-500.0,8.219e-05,2]
[422833648,1779493839000,-500.0,8.219e-05,2]
[422833647,1779493839000,-1738.65,8.219e-05,2]
[422833646,1779493839000,-1061.44,8.219e-05,2]
[422833644,1779493839000,-500.0,8.219e-05,2]
[422833651,1779493839000,-577.15,8.219e-05,2]
[422833653,1779493839000,-500.0,8.219e-05,2]
[422833652,1779493839000,-500.0,8.219e-05,2]
[422833650,1779493839000,-500.0,8.219e-05,2]
[422833665,1779493839000,-500.0,8.219e-05,2]
[422833655,1779493839000,-500.0,8.219e-05,2]
[422833658,1779493839000,-500.0,8.219e-05,2]
[422833660,1779493839000,-500.0,8.219e-05,2]
[422833657,1779493839000,-813.6,8.219e-05,2]
[422833723,1779493840000,-500.0,8.219e-05,2]
[422833732,1779493840000,-500.0,8.219e-05,2]
[422833730,1779493840000,-994.11,8.219e-05,2]
[422833722,1779493840000,-500.0,8.219e-05,2]
[422833728,1779493840000,-857.49,8.219e-05,2]
[422833721,1779493840000,-500.0,8.219e-05,2]
[422833726,1779493840000,-986.46,8.219e-05,2]
[422833727,1779493840000,-580.53,8.219e-05,2]
[422833729,1779493840000,-500.0,8.219e-05,2]
[422833720,1779493840000,-720.88,8.219e-05,2]
[422833724,1779493840000,-500.0,8.219e-05,2]
[422833745,1779493840000,-679.28,8.219e-05,2]
[422833733,1779493840000,-500.0,8.219e-05,2]
[422833744,1779493840000,-656.97,8.219e-05,2]
[422833734,1779493840000,-1355.74,8.219e-05,2]
[422833736,1779493840000,-2437.64,8.219e-05,2]
[422833740,1779493840000,-847.14,8.219e-05,2]